[Event "Croatian 1B League 2022"]
[Site "Porec"]
[Date "2022.09.25"]
[Round "2.9"]
[White "Cabarkapa, Novak"]
[Black "Segovic, Goran"]
[Result "1-0"]
[ECO "A28"]
[WhiteElo "2433"]
[BlackElo "2304"]
[Annotator "TA"]
[PlyCount "74"]
[EventDate "2022.09.24"]
[EventType "team-tourn"]
[EventCountry "CRO"]
[SourceTitle "playchess.com"]
[Source "ChessBase"]
[SourceQuality "1"]
[TimeControl "40/5400+30:1800+30"]

{[%evp 9,74,0,4,3,0,0,15,0,11,7,12,0,23,11,45,0,0,0,0,0,0,0,0,0,0,0,0,0,0,0,0,0,0,-20,-8,-24,0,0,0,0,34,27,118,19,33,46,50,0,56,57,383,386,518,484,587,542,1468,845,820,807,4698,3572,29981,29970,29982,29983,29990]} 1. c4 {[%emt 0:00:03]} Nf6 {[%emt 0:00:57]} 2. Nc3 {[%emt 0:00:06]} e5 {[%emt 0:01:04]} 3. Nf3 {[%emt 0:00:04]} Nc6 {[%emt 0:00:15]} 4. e4 {[%emt 0:00:05]} Bb4 {[%emt 0:04:26]} 5. d3 {[%emt 0:00:11]} d6 {[%emt 0:03:12]} 6. a3 {[%emt 0:00:06] A28: English Opening: Four Knights Variation.} Bxc3+ {[%emt 0:01:13]} 7. bxc3 {[%emt 0:00:04]} h6 {[%emt 0:02:16]} 8. g3 {[%emt 0:00:19] The position is equal.} O-O {[%emt 0:01:38] 8...0-0 is better than 8...Be6.} 9. Bg2 {[%emt 0:00:46]} Be6 {[%emt 0:03:52]} 10. O-O {[%emt 0:00:29]} Qd7 {[%emt 0:01:24]} 11. Nh4 {[%emt 0:00:34]} g5 {[%emt 0:09:26]} 12. Nf5 {[%emt 0:00:34]} Bxf5 {[%emt 0:01:44]} 13. exf5 {[%emt 0:00:03]} Qxf5 {[%emt 0:01:34] [#]} 14. Rb1 $146 {[%emt 0:03:01][%cal Ba1b1,Bb1b5,Bb5b2][%mdl 32]} ({Predecessor:} 14. f4 gxf4 15. gxf4 e4 16. dxe4 Nxe4 17. Qd5 Qxd5 18. cxd5 Nxc3 19. dxc6 b6 20. f5 {½-½ (26) Ferendiuk,H (1564)-Unternahrer,D (1691) Misiones 2022}) 14... Rab8 {[%emt 0:04:03]} 15. f4 {[%emt 0:06:50]} exf4 {[%emt 0:10:11]} 16. gxf4 {[%emt 0:00:40]} g4 {[%emt 0:02:43]} 17. Rb5 {[%emt 0:02:59]} Qg6 {[%emt 0:02:42]} 18. d4 {[%emt 0:23:21]} a6 {[%emt 0:03:51]} 19. f5 {[%emt 0:00:25]} Qg7 {[%emt 0:01:31]} 20. Rb2 {[%emt 0:00:37]} Rfe8 {[%emt 0:02:46]} 21. Qd3 {[%emt 0:10:39]} Na5 {[%emt 0:06:04]} 22. Bf4 {[%emt 0:01:37]} Re7 {[%emt 0:02:20]} 23. c5 {[%emt 0:10:24]} dxc5 {[%emt 0:07:08]} 24. dxc5 {[%emt 0:00:32][%cal Bd4c5,Bc5c6,Bc6b7][%mdl 32]} Rd7 {[%emt 0:03:58]} 25. Qc2 {[%emt 0:00:40]} Qf8 {[%emt 0:01:21]} (25... Re8 $1 $11 {keeps the balance.}) 26. Kh1 {[%emt 0:06:16] White is more active.} (26. Qf2 $16 {Strongly threatening Qh4.} h5 27. Qh4 Qxc5+ 28. Kh1) 26... Re8 {[%emt 0:04:57]} 27. Qf2 {[%emt 0:04:18] [#] Qh4 is the strong threat.} Kh7 {[%emt 0:03:39]} 28. Bxb7 {[%emt 0:11:29]} ({White should try} 28. Rb4 $14) 28... Nxb7 {[%emt 0:02:55]} (28... Nc4 $1 $11 29. Rb4 Ne5) 29. c6 $1 $36 {[%emt 0:00:27][%mdl 2048] White has the initiative.} (29. Rxb7 Rd3 30. Qh4 (30. Bxc7 $2 Rf3 $19) 30... Qg7 $17) 29... Rdd8 {[%emt 0:05:12][%mdl 8192] Loses the game.} (29... Ne4 $2 30. Qh4 Nbc5 31. cxd7 Nxd7 32. h3 $18 (32. Qxg4 Ndf6 $18)) (29... Nc5 $1 $14 30. cxd7 Ncxd7) 30. cxb7 $18 {[%emt 0:00:15]} Nd5 {[%emt 0:00:39]} 31. f6 {[%emt 0:03:13]} Nxf4 {[%emt 0:04:31]} 32. Qxf4 {[%emt 0:00:10]} Qxa3 {[%emt 0:01:24]} 33. Qxc7 {[%emt 0:03:36]} Qf8 {[%emt 0:00:04]} 34. c4 {[%emt 0:01:22][%cal Bc3c4,Bc4c5,Bc5c6][%mdl 32]} Kg8 {[%emt 0:01:42]} 35. Qf4 {[%emt 0:00:46]} Kh8 {[%emt 0:00:38]} 36. c5 {[%emt 0:00:49]} Rb8 {[%emt 0:00:34]} 37. c6 {[%emt 0:00:24]} Kg8 {[%emt 0:00:48] Weighted Error Value: White=0.12 (very precise) /Black=0.54} 1-0

[Event "Croatian 1B League 2022"]
[Site "Porec"]
[Date "2022.09.25"]
[Round "2.10"]
[White "Makovec, Bruno"]
[Black "Vojak, Daniel"]
[Result "1/2-1/2"]
[ECO "D28"]
[WhiteElo "2258"]
[BlackElo "2300"]
[Annotator "TA"]
[PlyCount "84"]
[EventDate "2022.09.24"]
[EventType "team-tourn"]
[EventCountry "CRO"]
[SourceTitle "playchess.com"]
[Source "ChessBase"]
[SourceQuality "1"]
[TimeControl "40/5400+30:1800+30"]

{[%evp 16,84,25,10,49,0,4,0,0,0,0,0,0,0,18,37,29,6,8,2,42,12,14,0,166,35,24,-16,-17,-19,-20,-24,-5,-17,-25,-41,-34,-62,-33,-56,-27,-92,-35,-205,-90,-86,-53,-88,-84,-84,-34,-48,-42,-44,0,-6,0,0,7,6,12,9,22,14,20,16,16,16,41,22,41]} 1. d4 {[%emt 0:00:02]} d5 {[%emt 0:00:07]} 2. c4 {[%emt 0:00:07]} dxc4 {[%emt 0:00:06]} 3. e3 {[%emt 0:02:05]} Nf6 {[%emt 0:02:13]} 4. Bxc4 {[%emt 0:00:17]} e6 {[%emt 0:00:06]} 5. Nf3 {[%emt 0:00:05]} c5 {[%emt 0:00:06]} 6. O-O {[%emt 0:00:23]} Nc6 {[%emt 0:00:22]} 7. Qe2 {[%emt 0:06:27]} a6 $1 {[%emt 0:03:36][%mdl 4] is more profitable than 7...cxd4 at the moment.} 8. Nc3 {[%emt 0:05:51]} b5 {[%emt 0:03:35]} 9. Bb3 {[%emt 0:00:27]} ({Of course not} 9. Ne5 Bb7 10. Bd3 (10. Nxc6 Bxc6 11. Bb3 b4 $15) 10... cxd4 11. Nxc6 Bxc6 12. exd4 Qxd4 $15) 9... Be7 {[%emt 0:08:14] D28: Queen's Gambit Accepted: Classical main line: 7 Qe2 with early ...Nc6.} 10. Rd1 {[%emt 0:08:24]} (10. dxc5 $14 O-O 11. e4) 10... O-O {[%emt 0:02:16]} 11. dxc5 {[%emt 0:14:18]} Qc7 {[%emt 0:01:33]} 12. h3 {[%emt 0:00:52]} ({Don't play} 12. a4 b4 13. Nb1 Bb7 $17) 12... Bxc5 {[%emt 0:04:56]} 13. e4 {[%emt 0:04:35][%cal Be3e4,Be4e5][%mdl 32]} Bb7 {[%emt 0:08:44]} 14. e5 {[%emt 0:08:13]} Nd7 {[%emt 0:01:36][%cal Rd7e5]} 15. Bf4 {[%emt 0:04:27]} Ne7 {[%emt 0:11:32]} 16. Ne4 {[%emt 0:05:19]} Bxe4 {[%emt 0:10:01]} 17. Qxe4 {[%emt 0:00:47] Strongly threatening Rac1.} Ng6 {[%emt 0:00:11]} 18. Bg3 {[%emt 0:01:55]} (18. Rac1 $5 {[%cal Rf4e3]}) 18... Rfd8 {[%emt 0:04:20]} 19. Rac1 {[%emt 0:04:35]} Qa7 $2 {[%emt 0:07:16] [#]} (19... Ndf8 $11 {and Black stays safe.}) 20. Ng5 $146 {[%emt 0:16:07]} (20. Rxd7 $1 $18 {[%mdl 512]} Bxf2+ (20... Qxd7 21. Rxc5) 21. Bxf2 Qxd7 22. Bb6) ({Predecessor:} 20. h4 Bb6 21. h5 Ngf8 22. Bc2 Nc5 23. Qf4 Rxd1+ 24. Rxd1 Rd8 25. Nd4 Rd5 26. Nb3 {½-½ (35) Litzka,M (2052)-Rosner,G (2032) Germany 2017}) 20... Ndf8 $1 $14 {[%emt 0:04:53]} 21. Nf3 {[%emt 0:04:37]} Ne7 {[%emt 0:06:13]} 22. Nh4 {[%emt 0:06:06] Inhibits Nf5.} Qb6 {[%emt 0:03:07]} 23. Bc2 {[%emt 0:02:06]} Bd4 {[%emt 0:04:07]} 24. b3 {[%emt 0:01:11]} Bb2 {[%emt 0:03:05]} 25. Rb1 {[%emt 0:00:14] Black must now prevent Rd6.} Rxd1+ {[%emt 0:01:15]} 26. Rxd1 {[%emt 0:02:10]} Nd5 {[%emt 0:02:13]} 27. Qf3 {[%emt 0:01:33]} Rc8 {[%emt 0:00:24]} 28. Bb1 {[%emt 0:00:40]} (28. Be4 $11 {remains equal.}) 28... Rc3 {[%emt 0:01:33]} (28... Nc3 $17 29. Rd2 Nxb1 30. Rxb2 Rc1+ 31. Kh2 Qd4) 29. Rd3 {[%emt 0:00:24] [#]} (29. Qe2 $15 Ba3 30. Nf3) 29... Rxd3 {[%emt 0:00:42]} (29... Qd8 $1 $19 {is more deadly.} 30. Rxc3 Nxc3) 30. Qxd3 $17 {[%emt 0:00:23]} Qc5 {[%emt 0:00:33]} (30... Qc7 {looks sharper.} 31. a4 Bxe5 32. Bxe5 Qxe5 33. axb5 Qe1+) 31. Qc2 {[%emt 0:00:32]} Qxc2 {[%emt 0:01:18]} 32. Bxc2 {[%emt 0:00:00]} b4 {[%emt 0:00:14]} (32... Nd7 $17 33. Nf3 Nb4) 33. Bd3 {[%emt 0:00:49]} a5 {[%emt 0:00:10]} 34. Nf3 {[%emt 0:00:45]} Nc3 {[%emt 0:05:55]} 35. Nd2 $1 {[%emt 0:00:36]} Nxa2 {[%emt 0:00:18]} 36. Nc4 {[%emt 0:00:03][%csl LRa5,LRb2]} Bd4 {[%emt 0:00:22]} 37. Nxa5 {[%emt 0:00:06]} Nd7 {[%emt 0:00:23]} 38. Nc6 {[%emt 0:00:31]} Bc5 {[%emt 0:00:32]} 39. Kf1 {[%emt 0:01:04]} Nc3 {[%emt 0:01:00]} 40. Bf4 {[%emt 0:00:00]} h6 {[%emt 0:00:00]} 41. Bd2 {[%emt 0:06:01]} Nd5 {[%emt 0:04:44]} 42. Bc4 {[%emt 0:03:01] White wants to play Bxd5. This bishop pair is nice.} N7b6 {[%emt 0:01:12] Weighted Error Value: White=0.27 (precise) /Black=0.23 (precise)} 1/2-1/2

[Event "Croatian 1B League 2022"]
[Site "Porec"]
[Date "2022.09.25"]
[Round "2.11"]
[White "Cupic, Lovro"]
[Black "Zadravec, Matija"]
[Result "1/2-1/2"]
[ECO "C60"]
[WhiteElo "2216"]
[BlackElo "2250"]
[Annotator "TA"]
[PlyCount "92"]
[EventDate "2022.09.24"]
[EventType "team-tourn"]
[EventCountry "CRO"]
[SourceTitle "playchess.com"]
[Source "ChessBase"]
[SourceQuality "1"]
[TimeControl "40/5400+30:1800+30"]

{[%evp 9,92,30,25,20,25,21,32,33,29,18,37,35,30,29,34,20,49,-2,4,0,0,0,-14,-52,-50,-51,-46,-50,-16,-26,-1,0,0,0,0,0,-1,-3,0,0,0,0,0,0,11,8,25,7,29,40,45,47,65,0,0,0,0,0,47,8,18,0,0,0,120,132,152,0,0,0,33,0,30,0,0,0,0,0,0,0,0,0,0,0,0]} 1. e4 {[%emt 0:00:02]} e5 {[%emt 0:00:11]} 2. Nf3 {[%emt 0:00:06]} Nc6 {[%emt 0:00:04]} 3. Bb5 {[%emt 0:00:04]} Nge7 {[%emt 0:00:34]} 4. c3 {[%emt 0:00:06]} d5 {[%emt 0:04:04]} 5. Nxe5 {[%emt 0:00:08]} dxe4 {[%emt 0:00:01]} 6. Qe2 {[%emt 0:00:10] C60: Ruy Lopez: Unusual Black 3rd moves and 3...g6.} Be6 $1 {[%emt 0:00:13]} (6... Qd5 7. Nxc6 bxc6 8. Bc4 $16) 7. Qxe4 {[%emt 0:00:16]} Bd5 {[%emt 0:01:27]} 8. Qe2 {[%emt 0:00:06] And now 0-0 would win. White is slightly better.} Bxg2 {[%emt 0:07:52]} 9. Rg1 {[%emt 0:00:09]} a6 {[%emt 0:04:56]} 10. Bxc6+ {[%emt 0:15:28]} (10. Rxg2 axb5 11. Nxc6 bxc6 $15) 10... Bxc6 {[%emt 0:00:12]} 11. Nxc6 {[%emt 0:00:04]} bxc6 {[%emt 0:00:06] [#]} 12. d4 $146 {[%emt 0:00:09]} ({Predecessor:} 12. Rg3 Qd5 13. Rd3 Qg2 14. f3 Qh1+ 15. Qf1 Qxh2 16. Qf2 Qxf2+ 17. Kxf2 Nd5 18. a3 Bc5+ 19. Kg2 Nf4+ {0-1 (20) Santamaria Quintana,I (1411)-Domenche Redondo,F (1717) ICCF email 2017}) 12... Qd6 {[%emt 0:08:58] Inhibits Bf4.} 13. Rg3 {[%emt 0:01:26]} (13. Nd2 $14) 13... f6 $11 {[%emt 0:10:09]} 14. Nd2 {[%emt 0:03:42]} Kf7 {[%emt 0:01:29]} 15. Ne4 {[%emt 0:02:36]} Qd5 {[%emt 0:02:05]} 16. Bd2 {[%emt 0:12:30]} Nf5 $1 {[%emt 0:02:56]} 17. Rd3 {[%emt 0:03:21]} Re8 {[%emt 0:03:38]} 18. f3 {[%emt 0:00:07]} Nd6 {[%emt 0:03:17][%cal Rd6e4]} 19. Re3 {[%emt 0:01:09]} Be7 {[%emt 0:03:22] [#] Hoping for ...Nc4.} 20. b3 {[%emt 0:07:51] Prevents Nc4.} (20. Qxa6 c5 21. b3 (21. Nxc5 $2 Nc4 $19) 21... Nf5 $11) 20... f5 {[%emt 0:08:22]} (20... Nf5 $5 21. Rd3 $8 Nh4 $11) 21. Nxd6+ {[%emt 0:08:41]} Bxd6 {[%emt 0:02:11]} 22. O-O-O {[%emt 0:01:46]} Rxe3 {[%emt 0:01:38]} 23. Qxe3 {[%emt 0:00:50]} Re8 {[%emt 0:02:09]} 24. Qd3 {[%emt 0:03:07]} c5 {[%emt 0:01:05]} 25. Qxa6 {[%emt 0:12:35]} cxd4 {[%emt 0:03:36]} 26. Qd3 $1 {[%emt 0:00:55]} Ra8 {[%emt 0:07:37]} 27. Kb1 {[%emt 0:04:55]} c5 {[%emt 0:06:31]} 28. h3 {[%emt 0:06:47]} g6 {[%emt 0:01:59]} 29. cxd4 {[%emt 0:02:08]} Be5 {[%emt 0:01:55]} 30. Bc3 {[%emt 0:03:09]} cxd4 {[%emt 0:00:17]} (30... Rd8 31. Rc1 $11) 31. Bb2 {[%emt 0:01:28]} ({Don't blunder} 31. Bxd4 $2 Rd8 32. Qc2 Bxd4 $19) ({White should try} 31. Bd2 $14) 31... Rc8 {[%emt 0:01:38]} 32. Rc1 {[%emt 0:00:51]} ({Avoid the trap} 32. Bxd4 $2 Rd8 33. Qc2 Bxd4 $19) 32... Rxc1+ {[%emt 0:00:12]} 33. Bxc1 {[%emt 0:00:12][%mdl 4096] Endgame KQB-KQB} Ke6 {[%emt 0:01:50]} (33... Kf6 $11 {might be stronger.}) 34. Kc2 {[%emt 0:02:06]} Kf6 {[%emt 0:02:51]} 35. Qa6+ {[%emt 0:01:03]} Kg7 {[%emt 0:01:19]} 36. Qd3 {[%emt 0:01:14]} Qa5 {[%emt 0:01:44]} (36... Kf6 $11) 37. a4 $16 {[%emt 0:00:25]} Qe1 {[%emt 0:00:20]} 38. Bb2 {[%emt 0:00:50]} ({Worse is} 38. Qd2 Qf1 $11) (38. Bd2 $16 Qa1 39. Qb5) 38... Qf2+ $14 {[%emt 0:02:13]} 39. Kb1 {[%emt 0:00:06]} Kf6 {[%emt 0:00:47]} 40. Bc1 {[%emt 0:00:00] [#] Black must now prevent a5.} Qe1 {[%emt 0:00:00]} 41. a5 {[%emt 0:21:03]} (41. Qd2 $5 {[%cal Rd2e1]} Qh1 42. f4 Qe4+ 43. Ka2 $11) 41... Qxa5 {[%emt 0:08:33] The position is equal.} 42. f4 {[%emt 0:00:04]} Bd6 {[%emt 0:01:12] ...Qd5 is the strong threat.} 43. Qxd4+ {[%emt 0:00:05]} Ke6 {[%emt 0:01:06]} 44. Bb2 {[%emt 0:01:07]} Qe1+ {[%emt 0:01:16]} 45. Ka2 $1 {[%emt 0:00:07]} Qa5+ {[%emt 0:00:18]} 46. Kb1 {[%emt 0:00:03]} Qe1+ {[%emt 0:00:35] Weighted Error Value: White=0.15 (very precise) /Black=0.09 (flawless)} 1/2-1/2

[Event "Croatian 1B League 2022"]
[Site "Porec"]
[Date "2022.09.25"]
[Round "2.12"]
[White "Novak, Ivan"]
[Black "Novosel, Lovro"]
[Result "1/2-1/2"]
[ECO "E06"]
[WhiteElo "2247"]
[BlackElo "2274"]
[Annotator "TA"]
[PlyCount "145"]
[EventDate "2022.09.24"]
[EventType "team-tourn"]
[EventCountry "CRO"]
[SourceTitle "playchess.com"]
[Source "ChessBase"]
[SourceQuality "1"]
[TimeControl "40/5400+30:1800+30"]

{[%evp 13,145,15,14,-4,25,11,28,16,20,0,1,8,11,7,7,6,9,10,26,0,0,0,0,0,0,0,5,-7,0,0,0,0,0,0,0,-5,-7,-8,0,0,12,0,0,0,0,0,44,-37,-44,-44,-47,-49,-37,-40,-44,-44,-37,-95,0,-27,0,-5,0,-10,-14,-26,0,-100,-2,-1,-6,-4,0,0,0,-6,0,0,7,-19,0,-4,-4,-4,-4,-20,0,-8,0,0,0,0,7,-4,7,0,7,0,0,0,0,0,8,0,8,0,8,8,8,8,436,436,29992,414,414,407,29973,0,0,0,29973,0,0,0,0,0,0,0,0,0,0,0,0,0]} 1. d4 {[%emt 0:00:01]} d5 {[%emt 0:00:18]} 2. Nf3 {[%emt 0:00:22]} e6 {[%emt 0:02:23]} 3. g3 {[%emt 0:02:52]} Nf6 {[%emt 0:00:00]} 4. Bg2 {[%emt 0:00:04]} Be7 {[%emt 0:00:00]} 5. O-O {[%emt 0:00:07]} O-O {[%emt 0:00:00]} 6. Nbd2 {[%emt 0:01:05]} c6 {[%emt 0:03:35]} 7. c4 {[%emt 0:06:31]} b6 {[%emt 0:01:59]} 8. Ne5 {[%emt 0:07:48] E06: Closed Catalan: Early deviations.} Nfd7 {[%emt 0:08:03]} 9. Nxd7 {[%emt 0:02:34]} Nxd7 {[%emt 0:11:33]} 10. e4 {White has an edge.} Bb7 {[%emt 0:12:58]} 11. Qb3 {[%cal Rc4d5]} Nf6 {[%emt 0:06:54] [#]} 12. Rd1 $146 {[%emt 0:34:08]} ({Predecessor:} 12. cxd5 cxd5 13. e5 Nd7 14. Nf3 a5 15. a4 Ba6 16. Re1 Rc8 17. Bd2 Rc4 18. Bf1 {0-1 (92) Karpov,A (2054)-Turbin,V (2041) Novokuznetsk 2015}) 12... Qc7 13. cxd5 {[%emt 0:00:00]} cxd5 {[%emt 0:15:35]} 14. e5 {[%emt 0:01:32]} Nd7 {[%emt 0:00:00]} 15. Bf1 {[%emt 0:11:54]} Rfc8 16. Bd3 {[%emt 0:00:00]} Nb8 {[%emt 0:01:07]} 17. Nf3 {[%emt 0:00:00]} a5 {[%emt 0:00:00]} 18. a4 {[%emt 0:00:00]} Nc6 {[%emt 0:00:00]} 19. Bd2 {[%emt 0:00:00]} Nb4 {[%emt 0:00:00]} 20. Rac1 {[%emt 0:00:00]} Qd7 {[%emt 0:00:00]} 21. Bb5 {[%emt 0:00:00]} Bc6 {[%emt 0:00:00]} 22. Bxc6 {[%emt 0:00:00]} Rxc6 {[%emt 0:00:00]} 23. Rxc6 {[%emt 0:00:00]} Qxc6 {[%emt 0:00:00]} 24. Rc1 {[%emt 0:00:00]} Qd7 {[%emt 0:00:00]} 25. Qc3 {[%emt 0:00:00]} Qxa4 {[%emt 0:00:00]} 26. Qc7 {[%emt 1:18:07][%csl LRb6,LRe7]} Re8 {[%emt 0:02:11]} 27. Qb7 {[%emt 0:01:08]} h6 {[%emt 0:31:19]} 28. Rc7 {[%emt 0:00:00]} Kf8 {[%emt 0:00:10]} 29. Qxb6 {[%emt 0:00:00]} Nd3 {[%emt 0:05:20][%cal Bb4d3,Bd3b2,Bb2c4][%mdl 32]} 30. Ra7 {[%emt 0:00:00] Active counter play!} (30. b3 $14 Qa1+ 31. Kg2) 30... Qd1+ $15 {[%emt 0:00:00]} 31. Kg2 {[%emt 0:00:00]} Qe2 {[%emt 0:00:00]} 32. Be3 {[%emt 0:00:00]} Nxb2 {[%emt 0:02:41]} 33. Qxa5 {[%emt 0:02:41]} Nc4 {[%emt 0:00:00][%csl LRa5,LRe3]} 34. Qc3 {[%emt 0:00:00]} Rb8 {[%emt 0:01:18] Inhibits Qb3.} 35. Bc1 {[%emt 0:00:00]} (35. Ng1 $15 Qd1 36. Bc1) 35... Qe4 {[%emt 0:00:00]} (35... g5 $1 $17 {Hoping for ...Rb1.} 36. Nd2 Rb2 $1 37. Bxb2 Nxd2 38. Ra8+ Kg7) 36. Ra2 {[%emt 0:00:00]} (36. Qa1 $5 {[%cal Ra7e7]} g5 37. Ra8 (37. Rxe7 Rb3 $11) 37... Rxa8 38. Qxa8+ Kg7 39. h3 $15) 36... Rc8 {[%emt 0:00:00]} 37. h4 {[%emt 0:00:00]} g5 {[%emt 0:00:00] White must now prevent ...g4.} 38. hxg5 {[%emt 0:00:00]} hxg5 {[%emt 0:00:00]} 39. Qe1 $1 {[%emt 0:00:00]} Qf5 {[%emt 0:01:02]} 40. Nd2 {[%emt 0:00:00]} (40. Qh1 $11 {keeps the balance.} Kg7 41. Ra7) 40... g4 {[%emt 0:00:00]} (40... Kg7 $1 $17 41. Nxc4 Rxc4) 41. Nxc4 $11 {[%emt 0:00:00]} dxc4 {[%emt 0:09:55]} 42. Qe3 {[%emt 0:00:00]} Kg7 {[%emt 0:06:45] ...Qh7 is the strong threat.} 43. Ra7 {[%emt 0:00:00]} Bf8 {[%emt 0:02:36]} 44. Qh6+ {[%emt 0:00:00]} Kg8 {[%emt 0:00:01]} 45. Qf4 {[%emt 0:00:00]} Qg6 {[%emt 0:02:05]} 46. Qg5 {[%emt 0:00:00]} Kg7 {[%emt 0:01:15]} 47. f3 {[%emt 0:00:00]} Qxg5 {[%emt 0:02:53]} 48. Bxg5 {[%emt 0:00:00][%mdl 4096] Endgame KRB-KRB} Kg6 {[%emt 0:00:31]} 49. Bc1 {[%emt 0:00:00]} Bb4 {[%emt 0:01:37]} 50. fxg4 {[%emt 0:00:00]} Bc3 {[%emt 0:00:07]} 51. Rd7 {[%emt 0:00:00]} Ba1 {[%emt 0:00:38]} 52. Kf3 {[%emt 0:00:00]} Rb8 {[%emt 0:01:26]} 53. Rc7 {[%emt 0:00:00]} c3 {[%emt 0:00:17]} 54. Ke2 {[%emt 0:00:00]} Rb1 {[%emt 0:00:06]} 55. Bf4 {[%emt 0:00:00]} Bb2 {[%emt 0:01:30]} 56. Kd3 {[%emt 0:00:00]} Rd1+ {[%emt 0:00:06]} 57. Ke4 {[%emt 0:00:00]} Kg7 {[%emt 0:03:34]} 58. Rc8 {[%emt 0:00:00]} Ba1 {[%emt 0:01:46]} 59. Bg5 {[%emt 0:00:00] Threatening mate with Bf6+.} Re1+ {[%emt 0:03:02]} 60. Kf3 {[%emt 0:00:00] Intending Bf6+ and mate.} Rf1+ {[%emt 0:00:58]} 61. Kg2 {[%emt 0:00:00]} Rd1 $2 {[%emt 0:00:24][%mdl 8192]} (61... Rb1 $1 $11) 62. Bf6+ $1 $18 {[%emt 0:00:00]} Kh7 {[%emt 0:00:20]} (62... Kh6 $18 63. Rh8+ Kg6 64. Rg8+ Kh7 65. Rg7+ Kh6 66. g5+ Kh5) 63. Rh8+ {[%emt 0:00:00]} (63. g5 $142 c2 64. g4 (64. Rxc2 Kg6 $11) 64... Rg1+ 65. Kxg1 c1=Q+ 66. Rxc1 Bb2 67. Rc8 Kg6 68. Rg8+ Kh7 69. Rh8+ Kg6 70. Rh6#) 63... Kg6 {[%emt 0:00:01]} 64. Rg8+ {[%emt 0:00:03]} Kh6 {[%emt 0:00:40]} (64... Kh7 $18 65. Rg7+ Kh6 66. g5+ Kh5) 65. Rh8+ {[%emt 0:01:03]} Kg6 {[%emt 0:00:01]} 66. Rg8+ {[%emt 0:00:25]} Kh6 $1 {[%emt 0:00:02] [#]} 67. Kf3 $2 {[%emt 0:00:18]} (67. g5+ $1 {mates} Kh5 68. g6 Rg1+ 69. Kxg1 c2 70. g4+ Kh6 {[#]} 71. Bg5+ $1 {[%mdl 512]} Kxg5 72. gxf7+ Kh4 73. Rc8) 67... Rd3+ $11 {[%emt 0:01:13] The position is equal.} (67... Rxd4 {is a self mate.} 68. g5+ Kh5 69. g4+ Rxg4 70. Rh8+ Kg6 71. Kxg4 c2 72. Rh6#) 68. Ke4 {[%emt 0:00:12]} Rxd4+ $1 {[%emt 0:00:32][%mdl 64] Decoy} 69. Kxd4 {[%emt 0:01:27]} c2+ {[%emt 0:00:04]} 70. Ke4 {[%emt 0:00:04]} c1=Q {[%emt 0:00:25]} 71. Rh8+ {[%emt 0:00:32]} Kg6 {[%emt 0:00:04]} 72. Rg8+ {[%emt 0:00:03]} Kh7 {[%emt 0:00:10]} (72... Kh6 $5 73. Rh8+ $8 Kg6 74. Rg8+ Kh7 75. Rh8+ Kg6 $11) 73. Rh8+ {[%emt 0:00:02] Weighted Error Value: White=0.12 (very precise) /Black=0.12 (very precise)} 1/2-1/2